bitfinex/quotes_BTCUSD_20250127
["timestamp","ask_amount","ask_price","bid_price","bid_amount"]
[1737998925276,0.2007,99651.0,99644.0,0.24734729]
[1737998925593,0.01868217,99652.0,99651.0,0.009]
[1737998925794,0.16920517,99652.0,99651.0,0.10634729]
[1737998926001,0.151523,99652.0,99651.0,0.10434729]
[1737998926201,0.151523,99652.0,99651.0,0.007]
[1737998926421,0.200701,99651.0,99643.0,0.02881425]
[1737998926633,0.00028987,99653.0,99644.0,0.24734729]
[1737998926634,0.150534,99645.0,99644.0,0.24734729]
[1737998926836,0.150534,99645.0,99628.0,0.21060094]
[1737998926837,0.00125447,99649.0,99628.0,0.200746]
[1737998927059,0.00028987,99653.0,99629.0,0.09734729]
[1737998927268,0.00028987,99653.0,99631.0,0.20074]
[1737998927484,0.200717,99643.0,99632.0,0.09734729]
[1737998927810,0.00028987,99653.0,99635.0,0.15]
[1737998927811,0.20071,99646.0,99635.0,0.15]
[1737998928015,0.150541,99641.0,99636.0,0.09734729]
[1737998928201,0.150535,99645.0,99638.0,0.150544]
[1737998928393,0.00028987,99653.0,99635.0,0.350732]
[1737998928394,0.00028987,99653.0,99647.0,0.15053]
[1737998928610,0.150523,99652.0,99651.0,0.009]
[1737998928811,0.150523,99652.0,99651.0,0.09734729]
[1737998928952,0.00028987,99653.0,99652.0,0.150523]
[1737998929152,0.00028987,99653.0,99652.0,0.24787029]
[1737998929358,0.00028987,99653.0,99652.0,0.09734729]
[1737998929542,0.00028987,99653.0,99652.0,0.24787029]
[1737998929745,0.00128987,99653.0,99652.0,0.24787029]
[1737998930469,0.00093369,99653.0,99652.0,0.24787029]
[1737998930875,0.150511,99661.0,99652.0,0.24787029]
[1737998931117,0.150511,99661.0,99653.0,0.09734729]
[1737998931118,0.150514,99659.0,99653.0,0.09734729]
[1737998931671,0.150515,99658.0,99653.0,0.24786829]
[1737998931885,0.01017084,99671.0,99653.0,0.09734729]
[1737998932094,0.150522,99653.0,99652.0,0.014]
[1737998932567,0.150522,99653.0,99652.0,0.009]
[1737998932986,0.15052,99654.0,99653.0,0.006]
[1737998934227,0.150533,99646.0,99641.0,0.30068747]
[1737998934458,0.01011434,99661.0,99642.0,0.09734729]
[1737998934671,0.351228,99650.0,99642.0,0.09734729]
[1737998934868,0.200701,99651.0,99642.0,0.09734729]
[1737998935006,0.150534,99646.0,99642.0,0.09734729]
[1737998935597,0.001,99646.0,99642.0,0.25688429]
[1737998935808,0.150529,99649.0,99644.0,0.150535]
[1737998936031,0.150529,99649.0,99645.0,0.09734729]
[1737998936292,0.15112815,99646.0,99645.0,0.09734729]
[1737998936701,0.001,99646.0,99645.0,0.24788129]
[1737998937085,0.001,99646.0,99642.0,0.014]
[1737998937339,0.150535,99644.0,99643.0,0.09734729]
[1737998938513,0.150535,99644.0,99643.0,0.10634729]
[1737998938723,0.150535,99644.0,99643.0,0.11234729]
[1737998938724,0.151535,99644.0,99643.0,0.11234729]
[1737998938938,0.151535,99644.0,99643.0,0.015]
[1737998939146,0.15278957,99644.0,99643.0,0.015]
[1737998939487,0.151535,99644.0,99643.0,0.015]
[1737998939698,0.15278963,99644.0,99643.0,0.015]
[1737998939911,0.15278959,99644.0,99643.0,0.015]
[1737998940369,0.150538,99642.0,99641.0,4.7e-07]
[1737998940574,0.150538,99642.0,99635.0,0.00029673]
[1737998940575,0.160547,99636.0,99635.0,2e-07]
[1737998940778,0.32464916,99636.0,99635.0,2e-07]
[1737998940986,0.39600441,99636.0,99635.0,2e-07]
[1737998941174,0.216047,99636.0,99635.0,2e-07]
[1737998941421,0.150547,99636.0,99635.0,2e-07]
[1737998941623,0.15180177,99636.0,99635.0,2e-07]
[1737998941833,0.15480177,99636.0,99635.0,2e-07]
[1737998942247,0.15180177,99636.0,99635.0,0.0020002]
[1737998942464,0.15180177,99636.0,99635.0,2e-07]
[1737998942676,0.31447444,99636.0,99635.0,0.0010002]
[1737998942884,0.25789429,99636.0,99635.0,0.0010002]
[1737998943084,0.150547,99636.0,99635.0,0.0010002]
[1737998943772,0.150547,99636.0,99635.0,2e-07]
[1737998943971,0.15180178,99636.0,99635.0,2e-07]
[1737998944149,0.150547,99636.0,99635.0,2e-07]
[1737998944351,0.15180174,99636.0,99635.0,2e-07]
[1737998944562,0.200724,99639.0,99635.0,0.0040002]
[1737998944794,0.150547,99636.0,99635.0,0.0040002]
[1737998944950,0.0751,99678.0,99635.0,0.10134749]
[1737998945157,0.0751,99678.0,99636.0,0.09734729]
[1737998945158,0.00014841,99659.0,99636.0,0.09734729]
[1737998945356,0.0001413,99644.0,99636.0,0.09734729]
[1737998945729,0.150542,99640.0,99636.0,0.09734729]
[1737998945951,0.0001413,99644.0,99636.0,0.09734729]
[1737998946182,0.0001413,99644.0,99643.0,0.150537]
[1737998946382,0.0001413,99644.0,99643.0,0.09734729]
[1737998946583,0.1506763,99644.0,99643.0,0.09734729]
[1737998946760,0.0001413,99644.0,99643.0,0.09734729]
[1737998947362,0.1516763,99644.0,99643.0,0.09734729]
[1737998947765,0.1506763,99644.0,99643.0,0.09734729]
[1737998947962,0.0011413,99644.0,99643.0,0.09734729]
[1737998948651,0.1506763,99644.0,99643.0,0.10634729]
[1737998948865,0.1516763,99644.0,99643.0,0.009]
[1737998949067,0.150547,99636.0,99635.0,2e-07]
[1737998949302,0.0011413,99644.0,99635.0,0.09734749]
[1737998949482,0.0011413,99644.0,99638.0,0.150544]
[1737998949684,0.0011413,99644.0,99639.0,0.09734729]
[1737998950171,0.150541,99640.0,99639.0,0.09734729]
[1737998951256,0.150539,99642.0,99639.0,0.09734729]
[1737998951471,0.0011413,99644.0,99643.0,0.150537]
[1737998951679,0.0001413,99644.0,99643.0,0.25688429]
[1737998951848,0.0001413,99644.0,99643.0,0.24788429]
[1737998952047,0.0001413,99644.0,99643.0,0.39788429]
[1737998952904,0.0001413,99644.0,99643.0,0.40688429]
[1737998953131,0.0001413,99644.0,99643.0,0.42088429]
[1737998953340,0.0001413,99644.0,99643.0,0.46598429]
[1737998953635,0.0011413,99644.0,99643.0,0.48298429]
[1737998954039,0.0001413,99644.0,99643.0,0.47498429]
[1737998954468,0.0011413,99644.0,99643.0,0.48298429]
[1737998954932,0.0001413,99644.0,99643.0,0.46598429]
[1737998955251,0.0011413,99644.0,99643.0,0.46098429]
[1737998955451,0.0011413,99644.0,99643.0,0.10634729]
[1737998955452,0.1516763,99644.0,99643.0,0.10634729]
[1737998955884,0.1516763,99644.0,99643.0,0.11534729]
[1737998956946,0.1516763,99644.0,99643.0,0.10634729]
[1737998957166,0.1516763,99644.0,99643.0,0.009]
[1737998958263,0.15293092,99644.0,99643.0,0.009]
[1737998958464,0.15193092,99644.0,99643.0,0.009]
[1737998958807,0.15193092,99644.0,99643.0,0.008]
[1737998958951,0.0001413,99644.0,99643.0,0.017]
[1737998959138,0.1506763,99644.0,99643.0,0.11434729]
[1737998959369,0.0001413,99644.0,99643.0,0.11434729]
[1737998959548,0.0001413,99644.0,99643.0,0.10534729]
[1737998959959,0.1506763,99644.0,99643.0,0.10634729]
[1737998960165,0.0001413,99644.0,99643.0,0.10134729]
[1737998960720,0.0001413,99644.0,99643.0,0.09734729]
[1737998961166,0.0001413,99644.0,99643.0,0.10334729]
[1737998961366,0.0001413,99644.0,99643.0,0.25388429]
[1737998961539,0.0001413,99644.0,99643.0,0.48788429]
[1737998961773,0.0001413,99644.0,99643.0,0.49388429]
[1737998961979,0.0001413,99644.0,99643.0,0.48488429]
[1737998962104,0.0001413,99644.0,99643.0,0.49388429]
[1737998962311,0.0001413,99644.0,99643.0,0.51688429]
[1737998962533,0.0001413,99644.0,99643.0,0.50788429]
[1737998962722,0.0001413,99644.0,99643.0,0.56238429]
[1737998962941,0.0001413,99644.0,99643.0,0.55638429]
[1737998963353,0.0011413,99644.0,99643.0,0.56338429]
[1737998963818,0.0001413,99644.0,99643.0,0.55638429]
[1737998964046,0.0011413,99644.0,99643.0,0.56538429]
[1737998964484,0.0011413,99644.0,99643.0,0.55638429]
[1737998964725,0.0001413,99644.0,99643.0,0.54738429]
[1737998964869,0.0011413,99644.0,99643.0,0.56538429]
[1737998965085,7e-05,99670.0,99643.0,0.40584729]
[1737998965288,7e-05,99670.0,99658.0,0.39786129]
[1737998965505,7e-05,99670.0,99658.0,0.42086129]
[1737998965916,7e-05,99670.0,99658.0,0.54246129]
[1737998966125,4.1e-07,99659.0,99658.0,0.54246129]
[1737998966327,7e-05,99670.0,99658.0,0.54246129]
[1737998966328,7e-05,99670.0,99659.0,0.173]
[1737998966543,7e-05,99670.0,99669.0,0.42084529]
[1737998968256,7e-05,99670.0,99669.0,0.42984529]
[1737998968456,7e-05,99670.0,99669.0,0.43884529]
[1737998968771,0.0149316,99685.0,99684.0,0.150475]
[1737998968987,0.0149316,99685.0,99684.0,0.42082229]
[1737998969855,0.0149316,99685.0,99684.0,0.55192229]
[1737998970057,0.0149316,99685.0,99684.0,0.57936679]
[1737998970282,0.0149316,99685.0,99684.0,0.58943426]
[1737998971027,0.0149316,99685.0,99684.0,0.58243426]
[1737998971226,0.0149316,99685.0,99684.0,0.59143426]
[1737998971492,0.0149316,99685.0,99684.0,0.60043426]
[1737998971924,0.0149316,99685.0,99684.0,0.44143426]
[1737998972136,0.0149316,99685.0,99684.0,0.45043426]
[1737998972336,0.0149316,99685.0,99684.0,0.60043426]
[1737998973187,0.0149316,99685.0,99684.0,0.13579179]
[1737998973393,0.0149316,99685.0,99684.0,0.11534729]
[1737998974012,0.0149316,99685.0,99684.0,0.25682229]
[1737998974187,0.0149316,99685.0,99684.0,0.10634729]
[1737998974360,0.0149316,99685.0,99684.0,0.24782229]
[1737998974559,0.0149316,99685.0,99684.0,0.25382229]
[1737998974790,0.0149316,99685.0,99684.0,0.26282229]
[1737998975342,0.0149316,99685.0,99684.0,0.25382229]
[1737998975518,0.0149316,99685.0,99684.0,0.26282229]
[1737998975810,0.0149316,99685.0,99684.0,0.24782229]
[1737998976015,0.01364983,99685.0,99684.0,0.26282229]
[1737998976636,0.01364983,99685.0,99684.0,0.25682229]
[1737998976804,0.01364983,99685.0,99684.0,0.26282229]
[1737998977415,0.01364983,99685.0,99684.0,0.25682229]
[1737998977617,0.01364983,99685.0,99684.0,0.26282229]
[1737998977836,0.013384,99685.0,99684.0,0.25382229]
[1737998978042,0.013384,99685.0,99684.0,0.10334729]
[1737998978261,0.163857,99685.0,99684.0,0.10334729]
[1737998978426,0.163857,99685.0,99684.0,0.006]
[1737998978626,0.16511107,99685.0,99684.0,0.006]
[1737998978829,0.16511107,99685.0,99684.0,0.015]
[1737998979029,0.150514,99658.0,99654.0,0.01990441]
[1737998979240,0.200687,99658.0,99655.0,0.09734729]
[1737998979440,0.150517,99656.0,99655.0,0.09734729]
[1737998979691,0.023384,99685.0,99655.0,0.09734729]
[1737998979692,0.013384,99685.0,99655.0,0.09734729]
[1737998979894,0.150515,99658.0,99655.0,0.09734729]
[1737998980044,0.150517,99656.0,99655.0,0.09734729]
[1737998980254,0.00125436,99670.0,99639.0,0.08875237]
[1737998980464,0.200664,99669.0,99645.0,0.00014841]
[1737998980661,0.200664,99669.0,99646.0,0.09734729]
[1737998980662,0.0012544,99668.0,99646.0,0.09734729]
[1737998980847,0.0012544,99668.0,99647.0,0.023]
[1737998981048,0.00125427,99681.0,99655.0,0.005]
[1737998981400,0.150509,99662.0,99656.0,0.09734729]
[1737998981764,0.150513,99659.0,99656.0,0.09734729]
[1737998981973,0.200678,99662.0,99656.0,0.09734729]
[1737998982187,0.150516,99657.0,99656.0,0.09734729]
[1737998982391,0.200662,99670.0,99656.0,0.09734729]
[1737998982847,0.150516,99657.0,99656.0,0.09734729]
[1737998983055,0.150516,99657.0,99656.0,0.10634729]
[1737998984073,0.150516,99657.0,99656.0,0.11134729]
[1737998984273,0.150516,99657.0,99656.0,0.10234729]
[1737998984509,0.150516,99657.0,99656.0,0.11134729]
[1737998984718,0.150516,99657.0,99656.0,0.10634729]
[1737998984921,0.150516,99657.0,99656.0,0.10234729]
[1737998985734,0.135516,99657.0,99656.0,0.11134729]
[1737998985935,0.135516,99657.0,99656.0,0.10234729]
[1737998986164,0.135516,99657.0,99656.0,0.09734729]
[1737998986582,0.135516,99657.0,99656.0,0.10334729]
[1737998987276,0.135516,99657.0,99656.0,0.09734729]
[1737998987487,0.135516,99657.0,99656.0,0.10634729]
[1737998987692,0.135516,99657.0,99656.0,0.11034729]
[1737998987914,0.135516,99657.0,99656.0,0.10134729]
[1737998988129,0.135516,99657.0,99645.0,0.00014841]
[1737998988130,0.150532,99646.0,99645.0,0.00014841]
[1737998988338,0.150532,99646.0,99645.0,0.0974957]
[1737998988756,0.150532,99646.0,99645.0,0.00014841]
[1737998988963,0.15178658,99646.0,99645.0,0.00014841]
[1737998990332,0.16207581,99646.0,99645.0,0.00014841]
[1737998990557,0.15178658,99646.0,99645.0,0.00014841]
[1737998990953,0.15178658,99646.0,99645.0,0.00914841]
[1737998991149,0.150532,99646.0,99645.0,0.00014841]
[1737998991386,0.150532,99646.0,99645.0,0.00914841]
[1737998991387,0.15178658,99646.0,99645.0,0.00914841]
[1737998991637,0.200684,99660.0,99645.0,0.1064957]
[1737998991852,0.03403321,99685.0,99646.0,0.29805729]
[1737998992069,0.00125431,99684.0,99647.0,0.200708]
[1737998992284,0.200638,99682.0,99648.0,0.09734729]
[1737998992498,0.200676,99664.0,99648.0,0.09734729]
[1737998992707,0.150506,99664.0,99650.0,0.200702]
[1737998992920,0.0135253,99685.0,99653.0,0.023]
[1737998993198,0.00125422,99684.0,99656.0,0.20069]
[1737998993403,0.150501,99668.0,99658.0,0.200686]
[1737998993577,0.01,99695.0,99660.0,0.150511]
[1737998993814,0.200665,99669.0,99661.0,0.09734729]
[1737998994022,0.00125418,99684.0,99661.0,0.09734729]
[1737998994023,0.200634,99684.0,99661.0,0.09734729]
[1737998994255,0.150508,99662.0,99661.0,0.09734729]
[1737998994464,0.00125418,99683.0,99661.0,0.09734729]
[1737998994670,0.150508,99662.0,99661.0,0.09734729]
[1737998995079,0.150508,99662.0,99661.0,0.10634729]
[1737998995282,0.150508,99662.0,99661.0,0.09734729]
[1737998995521,0.150501,99667.0,99662.0,0.150508]
[1737998995726,0.150503,99666.0,99663.0,0.09734729]
[1737998995948,0.53861065,99693.0,99663.0,0.09734729]
[1737998995949,0.200617,99693.0,99663.0,0.09734729]
[1737998996163,0.200625,99688.0,99666.0,0.023]
[1737998996368,0.150466,99691.0,99684.0,0.150475]
[1737998996583,0.200619,99692.0,99684.0,0.09734729]
[1737998996802,0.00999257,99695.0,99654.0,0.01026237]
[1737998996803,0.00999257,99695.0,99667.0,0.01967197]
[1737998997032,0.150498,99669.0,99668.0,0.09734729]
[1737998998284,0.01,99688.0,99653.0,0.150521]
[1737998998460,0.01,99688.0,99655.0,0.02010198]
[1737998998461,0.150514,99659.0,99655.0,0.02010198]
[1737998998675,0.150514,99659.0,99645.0,0.20100773]
[1737998998676,0.150516,99657.0,99656.0,0.09734729]
[1737998998880,0.01,99688.0,99656.0,0.09734729]
[1737998998881,0.150512,99660.0,99656.0,0.09734729]
[1737998999675,0.200658,99672.0,99656.0,0.09734729]
[1737998999877,0.150511,99661.0,99656.0,0.09734729]
[1737999001295,0.15,99684.0,99658.0,0.150513]
[1737999001486,0.15,99684.0,99659.0,0.09734729]
[1737999001689,0.1503717,99662.0,99659.0,0.09734729]
[1737999001906,0.15,99684.0,99659.0,0.09734729]
[1737999002109,0.150497,99670.0,99659.0,0.09734729]
[1737999002307,0.0135253,99685.0,99659.0,0.09734729]
[1737999002529,0.02367894,99685.0,99659.0,0.09734729]
[1737999002690,0.150488,99676.0,99661.0,0.023]
[1737999002891,0.02367894,99685.0,99663.0,0.200676]
[1737999003097,0.02367894,99685.0,99666.0,0.023]
[1737999003327,0.1639993,99685.0,99680.0,0.150481]
[1737999003533,0.1639993,99685.0,99668.0,0.023]
[1737999003534,0.0135253,99685.0,99681.0,0.09734729]
[1737999003744,0.150478,99682.0,99681.0,0.09734729]
[1737999004158,0.150498,99670.0,99664.0,0.200673]
[1737999004360,0.2141573,99685.0,99666.0,0.20067]
[1737999004583,0.00125413,99684.0,99667.0,0.09734729]
[1737999004795,0.150499,99668.0,99667.0,0.09734729]
[1737999005815,0.00125419,99669.0,99646.0,0.0477]
[1737999006019,0.200644,99679.0,99667.0,0.014]
[1737999006277,0.14847687,99668.0,99667.0,0.014]
[1737999006586,0.14973118,99668.0,99667.0,0.014]
[1737999006792,0.14973118,99668.0,99667.0,0.009]
[1737999007003,0.150516,99657.0,99656.0,0.00029673]
[1737999007207,0.150516,99657.0,99656.0,0.09764402]
[1737999007413,0.150516,99657.0,99656.0,0.00029673]
[1737999008059,0.15177039,99657.0,99656.0,0.00029673]
[1737999008488,0.35651768,99657.0,99656.0,7.3e-07]
[1737999008701,0.310531,99647.0,99646.0,0.00014841]
[1737999008921,0.15,99646.0,99645.0,1.4e-07]
[1737999009140,0.310534,99645.0,99644.0,2.7e-07]
[1737999009352,0.150566,99624.0,99609.0,0.00029694]
[1737999009601,0.02058439,99646.0,99623.0,0.18609966]
[1737999009806,0.200743,99630.0,99624.0,0.09734729]
[1737999010035,0.32799365,99658.0,99624.0,0.09734729]
[1737999010036,0.200729,99637.0,99626.0,0.200749]
[1737999010295,0.0775,99668.0,99624.0,0.09734729]
[1737999010296,0.150532,99646.0,99645.0,0.003]
[1737999010520,0.01986212,99670.0,99645.0,0.09734729]
[1737999010740,0.01986212,99670.0,99636.0,0.0493]
[1737999010741,0.200668,99667.0,99636.0,0.0493]
[1737999010951,0.01986025,99676.0,99646.0,0.09734729]
[1737999010952,0.200692,99655.0,99646.0,0.09734729]
[1737999011157,0.00014839,99657.0,99646.0,0.09734729]
[1737999011359,0.150531,99647.0,99646.0,0.09734729]
[1737999011566,0.200704,99650.0,99646.0,0.09734729]
[1737999011770,0.150531,99647.0,99646.0,0.09734729]
[1737999011976,0.150517,99656.0,99646.0,0.09734729]
[1737999012154,0.01032899,99657.0,99646.0,0.09834729]
[1737999012610,0.00014839,99657.0,99656.0,0.150517]
[1737999012818,0.00014839,99657.0,99656.0,0.24786429]
[1737999013030,0.00014839,99657.0,99656.0,0.27086429]
[1737999013240,0.00014839,99657.0,99656.0,0.52107977]
[1737999013875,0.00014839,99657.0,99656.0,0.53007977]
[1737999014084,0.00014839,99657.0,99656.0,0.57887977]
[1737999014462,0.0135253,99685.0,99657.0,0.173]
[1737999014729,0.150476,99684.0,99670.0,0.023]
[1737999014942,0.0135253,99685.0,99671.0,0.09734729]
[1737999015151,0.150478,99682.0,99671.0,0.24784129]
[1737999015340,0.0011112,99683.0,99676.0,0.150487]
[1737999015341,0.150478,99683.0,99676.0,0.150487]
[1737999015472,0.0135253,99685.0,99677.0,0.09734729]
[1737999015851,0.150484,99678.0,99677.0,0.09734729]
[1737999016259,0.150493,99672.0,99671.0,0.012]
[1737999016464,0.150493,99672.0,99671.0,0.003]
[1737999017232,0.0135253,99685.0,99664.0,0.200673]
[1737999017434,0.0135253,99685.0,99665.0,0.09734729]
[1737999017435,0.200647,99678.0,99665.0,0.09734729]
[1737999017673,0.0135253,99685.0,99677.0,0.006]
[1737999017821,0.1639993,99685.0,99679.0,0.150481]
[1737999018021,0.1639993,99685.0,99681.0,0.150479]
[1737999018022,0.0135253,99685.0,99681.0,0.150479]
[1737999018267,0.150477,99683.0,99682.0,0.09734729]
[1737999018469,0.0135253,99685.0,99682.0,0.09734729]
[1737999018703,0.0135253,99685.0,99684.0,0.173475]
[1737999018937,0.0135253,99685.0,99684.0,0.54662229]
[1737999019118,0.0135253,99685.0,99684.0,0.56635027]
[1737999019353,0.150424,99718.0,99712.0,0.149432]
[1737999019494,0.02019473,99744.0,99686.0,0.023]
[1737999019495,0.00125351,99730.0,99713.0,0.09734729]
[1737999019859,0.00125349,99734.0,99714.0,0.200573]
[1737999020059,0.00125349,99734.0,99715.0,0.09734729]
[1737999020262,0.150424,99718.0,99715.0,0.09734729]
[1737999020466,0.150423,99719.0,99715.0,0.09734729]
[1737999020699,0.200551,99726.0,99715.0,0.09734729]
[1737999020869,0.200537,99732.0,99717.0,0.200567]
[1737999021107,0.01716177,99735.0,99718.0,0.09734729]
[1737999021334,0.15042,99721.0,99718.0,0.09734729]
[1737999021539,0.01716177,99735.0,99718.0,0.09734729]
[1737999021747,0.00125356,99734.0,99703.0,0.02029652]
[1737999021961,0.00125356,99734.0,99659.0,0.01]
[1737999021962,0.150459,99695.0,99683.0,0.0831]
[1737999022166,0.01,99729.0,99685.0,0.09734729]
[1737999022378,0.150472,99686.0,99685.0,0.09734729]
[1737999022558,0.15,99721.0,99685.0,0.09734729]
[1737999022771,0.150422,99719.0,99718.0,0.009]
[1737999022968,0.15167584,99719.0,99718.0,0.009]
[1737999023239,0.150472,99686.0,99685.0,0.09734729]
[1737999023654,0.150472,99686.0,99685.0,0.10634729]
[1737999023860,0.150472,99686.0,99685.0,0.009]
[1737999024068,0.200611,99695.0,99685.0,0.10634729]
[1737999024267,0.150472,99686.0,99685.0,0.009]
[1737999024478,0.150471,99687.0,99685.0,0.09734729]
[1737999024729,0.20076506,99686.0,99679.0,0.150483]
[1737999024931,0.35123706,99686.0,99685.0,0.005]
[1737999025242,0.150475,99684.0,99678.0,0.08986571]
[1737999025447,0.00013406,99686.0,99685.0,0.005]
[1737999025654,0.00013406,99686.0,99685.0,0.27582029]
[1737999026587,0.00113406,99686.0,99685.0,0.28382029]
[1737999026822,0.00013406,99686.0,99685.0,0.27082029]
[1737999027307,0.00113406,99686.0,99685.0,0.51012029]
[1737999027509,0.00013406,99686.0,99685.0,0.54732029]
[1737999027712,0.00113406,99686.0,99685.0,0.55032029]
[1737999028106,0.00113406,99686.0,99685.0,0.55732029]
[1737999028537,0.00113406,99686.0,99685.0,0.55032029]
[1737999028738,0.00113406,99686.0,99685.0,0.55832029]
[1737999029156,0.00013406,99686.0,99685.0,0.55032029]
[1737999029564,0.00013406,99686.0,99685.0,0.55932029]
[1737999029783,0.00013406,99686.0,99685.0,0.55032029]
[1737999029996,0.00013406,99686.0,99685.0,0.55932029]
[1737999030202,0.00013406,99686.0,99685.0,0.57147533]
[1737999030414,0.00013406,99686.0,99685.0,0.57047533]
[1737999030584,0.00027566,99686.0,99685.0,0.57047533]
[1737999030817,0.00027566,99686.0,99685.0,0.57947533]
[1737999030962,0.00027566,99686.0,99685.0,0.56247533]
[1737999031318,0.00027566,99686.0,99685.0,0.57047533]
[1737999031932,0.00027566,99686.0,99685.0,0.42794345]
[1737999032578,0.00027566,99686.0,99685.0,0.26347045]
[1737999032784,0.15074766,99686.0,99685.0,0.12181541]
[1737999032994,0.15074766,99686.0,99685.0,0.01546812]
[1737999033217,0.150477,99683.0,99674.0,0.200653]
[1737999033468,0.15048,99681.0,99678.0,0.09734729]
[1737999033686,0.15048,99681.0,99659.0,0.02035746]
[1737999033687,0.15074766,99686.0,99685.0,0.009]
[1737999033909,0.00027566,99686.0,99685.0,0.018]
[1737999034117,0.00027566,99686.0,99685.0,0.27082029]
[1737999034317,0.00027566,99686.0,99685.0,0.50482029]
[1737999034740,0.31326931,99709.0,99707.0,0.15044]
[1737999034964,0.150415,99724.0,99711.0,0.150434]
[1737999035173,0.200549,99727.0,99711.0,0.24778129]
[1737999035376,0.200555,99723.0,99711.0,0.24778129]
[1737999035581,0.150419,99721.0,99711.0,0.24778129]
[1737999035786,0.150414,99725.0,99711.0,0.24778129]
[1737999035997,0.200545,99728.0,99711.0,0.24778129]
[1737999036205,0.20054,99731.0,99711.0,0.27078129]
[1737999036409,0.150414,99725.0,99711.0,0.27978129]
[1737999036763,0.200557,99723.0,99711.0,0.25678129]
[1737999037020,0.200564,99719.0,99711.0,0.10634729]
[1737999037277,0.15809967,99712.0,99711.0,0.10634729]
[1737999037475,0.00766667,99712.0,99711.0,0.10634729]
[1737999037996,0.00766667,99712.0,99711.0,0.25678129]
[1737999038203,0.00766667,99712.0,99711.0,0.10634729]
[1737999038412,0.00766667,99712.0,99711.0,0.25678129]
[1737999038648,0.15794685,99712.0,99711.0,0.009]
[1737999038863,0.15920058,99712.0,99711.0,0.009]
[1737999039490,0.00876758,99712.0,99711.0,0.10634729]
[1737999039696,0.00751385,99712.0,99711.0,0.09734729]
[1737999039956,0.00751385,99712.0,99711.0,0.10334729]
[1737999040165,0.00751385,99712.0,99711.0,0.25378129]
[1737999040377,0.00751385,99712.0,99711.0,0.10334729]
[1737999040775,0.00751385,99712.0,99711.0,0.09734729]
[1737999041191,0.15794685,99712.0,99711.0,0.09734729]
[1737999041391,0.00751385,99712.0,99711.0,0.09734729]
[1737999041723,0.15794685,99712.0,99711.0,0.09734729]
[1737999042142,0.00751385,99712.0,99711.0,0.09734729]
[1737999042770,0.00851385,99712.0,99711.0,0.10634729]
[1737999042973,0.00851385,99712.0,99711.0,0.27978129]
[1737999044642,0.00851385,99712.0,99711.0,0.25678129]
[1737999045266,0.00751385,99712.0,99711.0,0.25178129]
[1737999045478,0.00751385,99712.0,99711.0,0.28378129]
[1737999045668,0.00751385,99712.0,99711.0,0.47068129]
[1737999046080,0.00751385,99712.0,99711.0,0.47968129]
[1737999046305,0.00751385,99712.0,99711.0,0.47068129]
[1737999046521,0.00751385,99712.0,99711.0,0.46668129]
[1737999046731,0.0001414,99752.0,99743.0,0.150386]
[1737999046953,0.00063631,99744.0,99743.0,0.27073329]
[1737999047676,0.00063631,99744.0,99743.0,0.33073329]
[1737999047980,0.00063631,99744.0,99743.0,0.35373329]
[1737999048179,0.00063631,99744.0,99743.0,0.55193329]
[1737999048382,0.0001413,99757.0,99754.0,0.200491]
[1737999048623,0.00027537,99757.0,99756.0,0.39771329]
[1737999049202,0.00027537,99757.0,99756.0,0.42071329]
[1737999049406,0.00027537,99757.0,99756.0,0.27071329]
[1737999049610,0.00027537,99757.0,99756.0,0.24771329]
[1737999049893,0.15064037,99757.0,99756.0,0.01944965]
[1737999050355,0.00027537,99757.0,99756.0,0.12579694]
[1737999050558,0.00027537,99757.0,99756.0,0.26716294]
[1737999050758,0.00027537,99757.0,99756.0,0.11679694]
[1737999050971,0.00027537,99757.0,99756.0,0.12579694]
[1737999051177,0.15064037,99757.0,99756.0,0.11134729]
[1737999051500,0.00027537,99757.0,99756.0,0.10634729]
[1737999051701,0.1605332,99757.0,99756.0,0.10634729]
[1737999051960,0.15064037,99757.0,99756.0,0.011]
[1737999052166,0.15064037,99757.0,99756.0,0.002]
[1737999052517,0.00027537,99757.0,99756.0,0.10834729]
[1737999052750,0.00018525,99757.0,99756.0,0.27271329]
[1737999052955,0.00018525,99757.0,99756.0,0.24771329]
[1737999053152,0.00018525,99757.0,99756.0,0.25671329]
[1737999053814,0.00018525,99757.0,99756.0,0.10634729]
[1737999054057,0.00018525,99757.0,99756.0,0.24771329]
[1737999054206,0.00018525,99757.0,99756.0,0.25671329]
[1737999055988,0.15055025,99757.0,99756.0,0.10634729]
[1737999056423,0.15055025,99757.0,99756.0,0.009]
[1737999058268,0.15180344,99757.0,99756.0,0.009]
[1737999059121,0.00143844,99757.0,99725.0,0.150413]
[1737999059344,0.00143844,99757.0,99726.0,0.0973912]
[1737999059345,0.150368,99755.0,99726.0,0.0973912]
[1737999059678,0.00018525,99757.0,99726.0,0.0973912]
[1737999059679,0.00125328,99754.0,99726.0,0.0973912]
[1737999059898,0.150397,99736.0,99728.0,0.200545]
[1737999060114,0.150397,99736.0,99729.0,0.09734729]
[1737999060344,0.200524,99739.0,99732.0,0.150402]
[1737999060530,0.150396,99737.0,99733.0,0.09734729]
[1737999060792,0.01010617,99757.0,99733.0,0.09734729]
[1737999061021,0.1504,99734.0,99730.0,4.391e-05]
[1737999061247,0.150404,99731.0,99730.0,4.391e-05]
[1737999061458,0.15165752,99731.0,99730.0,4.391e-05]
[1737999061943,0.150404,99731.0,99730.0,4.391e-05]
[1737999062149,0.15165746,99731.0,99730.0,4.391e-05]
[1737999063029,0.30165769,99731.0,99730.0,4.391e-05]
[1737999063243,0.39875129,99731.0,99730.0,4.391e-05]
[1737999063673,0.15,99712.0,99683.0,0.02016285]
[1737999063899,0.0766,99721.0,99684.0,0.09734729]
[1737999063900,0.200581,99710.0,99684.0,0.09734729]
[1737999064124,0.150472,99686.0,99684.0,0.09734729]
[1737999064405,0.150475,99684.0,99683.0,0.02016285]
[1737999065153,0.15172907,99684.0,99683.0,0.02016285]
[1737999065415,0.15172911,99684.0,99683.0,0.02065786]
[1737999065682,0.16190555,99684.0,99683.0,0.02065786]
[1737999066170,0.16190556,99684.0,99683.0,0.02065786]
[1737999066907,0.16190556,99684.0,99683.0,0.00249501]
[1737999067414,0.16065144,99684.0,99683.0,0.00249501]
[1737999068769,0.16190555,99684.0,99683.0,0.00150501]
[1737999068980,0.31190555,99684.0,99683.0,0.00150501]
[1737999069196,0.31065144,99684.0,99683.0,0.00150501]
[1737999069442,0.150484,99678.0,99677.0,0.00029736]
[1737999070743,0.00125417,99681.0,99677.0,0.00029736]
[1737999070744,0.00125417,99681.0,99677.0,0.09964465]